[Event "*** Titled Tuesday Blitz"]
[Site "Chess.com"]
[Date "2019.02.05"]
[Round "4"]
[White "Farrukh_Amonatov"]
[Black "wenx95"]
[Result "0-1"]
[WhiteElo "2790"]
[BlackElo "2513"]
[TimeControl "180+2"]
[EndTime "13:50:25 PST"]
[Termination "wenx95 won by resignation"]

1. e4 {[%clk 0:02:32.9]} 1... d5 {[%clk 0:02:57.1]} 2. exd5 {[%clk 0:02:33]}
2... Qxd5 {[%clk 0:02:59]} 3. Nc3 {[%clk 0:02:33.9]} 3... Qa5 {[%clk 0:03:00.6]}
4. d4 {[%clk 0:02:35.2]} 4... Nf6 {[%clk 0:03:02.2]} 5. Nf3 {[%clk 0:02:35.9]}
5... Nc6 {[%clk 0:03:03.7]} 6. Bb5 {[%clk 0:02:35]} 6... Nd5 {[%clk 0:03:05]} 7.
Bd2 {[%clk 0:02:33.9]} 7... Nxc3 {[%clk 0:03:05.9]} 8. Bxc6+ {[%clk 0:02:35]}
8... bxc6 {[%clk 0:03:07.8]} 9. Bxc3 {[%clk 0:02:36.5]} 9... Qd5 {[%clk
0:03:09.4]} 10. O-O {[%clk 0:02:36.3]} 10... Bg4 {[%clk 0:03:10.5]} 11. Re1
{[%clk 0:02:36.3]} 11... Bxf3 {[%clk 0:03:08.8]} 12. Qxf3 {[%clk 0:02:36]} 12...
Qxf3 {[%clk 0:03:10]} 13. gxf3 {[%clk 0:02:37.7]} 13... e6 {[%clk 0:03:11.9]}
14. Ba5 {[%clk 0:02:33.8]} 14... O-O-O {[%clk 0:03:07.2]} 15. Rad1 {[%clk
0:02:27.7]} 15... Be7 {[%clk 0:03:02.1]} 16. c4 {[%clk 0:02:27.7]} 16... Bf6
{[%clk 0:03:02.3]} 17. Bc3 {[%clk 0:02:27.9]} 17... Rd7 {[%clk 0:02:59.2]} 18.
Rd2 {[%clk 0:02:18.7]} 18... Rhd8 {[%clk 0:02:58.2]} 19. Red1 {[%clk 0:02:19.7]}
19... c5 {[%clk 0:02:52.1]} 20. d5 {[%clk 0:02:18.5]} 20... Bxc3 {[%clk
0:02:51.9]} 21. bxc3 {[%clk 0:02:20.4]} 21... Rd6 {[%clk 0:02:47.3]} 22. Kg2
{[%clk 0:02:11.3]} 22... c6 {[%clk 0:02:45.5]} 23. Rb2 {[%clk 0:02:07.9]} 23...
exd5 {[%clk 0:02:40.5]} 24. cxd5 {[%clk 0:02:09.8]} 24... cxd5 {[%clk
0:02:40.3]} 25. Rdb1 {[%clk 0:02:10.9]} 25... Rb6 {[%clk 0:01:51.2]} 26. Rxb6
{[%clk 0:02:10]} 26... axb6 {[%clk 0:01:53.1]} 27. Rxb6 {[%clk 0:02:11.1]} 27...
Kc7 {[%clk 0:01:53.5]} 28. Ra6 {[%clk 0:02:11.8]} 28... Kb7 {[%clk 0:01:52.9]}
29. Ra3 {[%clk 0:02:09.9]} 29... Kb6 {[%clk 0:01:50.3]} 30. Kf1 {[%clk
0:02:08.9]} 30... Rd6 {[%clk 0:01:46.7]} 31. Rb3+ {[%clk 0:02:01.6]} 31... Kc6
{[%clk 0:01:45.9]} 32. a4 {[%clk 0:02:01]} 32... Rh6 {[%clk 0:01:17]} 33. Kg2
{[%clk 0:01:57.8]} 33... Rg6+ {[%clk 0:01:17.6]} 34. Kf1 {[%clk 0:01:59.2]}
34... Rh6 {[%clk 0:01:18.5]} 35. Kg1 {[%clk 0:01:52.1]} 35... Rh4 {[%clk
0:01:13.5]} 36. Ra3 {[%clk 0:01:51.3]} 36... Kb6 {[%clk 0:01:12.9]} 37. a5+
{[%clk 0:01:51.2]} 37... Ka6 {[%clk 0:01:14]} 38. Kg2 {[%clk 0:01:49.5]} 38...
Rh6 {[%clk 0:00:57.2]} 39. Ra1 {[%clk 0:01:47.9]} 39... Rg6+ {[%clk 0:00:57]}
40. Kf1 {[%clk 0:01:47.6]} 40... Rh6 {[%clk 0:00:57]} 41. Kg2 {[%clk 0:01:47.2]}
41... Rg6+ {[%clk 0:00:57.5]} 42. Kh3 {[%clk 0:01:48.6]} 42... d4 {[%clk
0:00:55.8]} 43. cxd4 {[%clk 0:01:44.3]} 43... cxd4 {[%clk 0:00:56]} 44. f4
{[%clk 0:01:44.8]} 44... d3 {[%clk 0:00:49.5]} 45. f5 {[%clk 0:01:43.2]} 45...
Rd6 {[%clk 0:00:49.6]} 46. Kg3 {[%clk 0:01:42.7]} 46... d2 {[%clk 0:00:49.9]}
47. Rd1 {[%clk 0:01:43.4]} 47... Kxa5 {[%clk 0:00:51.3]} 48. Kf3 {[%clk
0:01:45.2]} 48... Kb4 {[%clk 0:00:48.5]} 49. Ke2 {[%clk 0:01:46.1]} 49... Kc3
{[%clk 0:00:49.3]} 50. Ra1 {[%clk 0:01:46.5]} 50... d1=Q+ {[%clk 0:00:48]} 51.
Rxd1 {[%clk 0:01:47.9]} 51... Rxd1 {[%clk 0:00:49.9]} 52. Kxd1 {[%clk
0:01:49.2]} 52... Kd3 {[%clk 0:00:51.4]} 53. f6 {[%clk 0:01:50.6]} 53... g6
{[%clk 0:00:48.8]} 54. Ke1 {[%clk 0:01:51.9]} 54... h5 {[%clk 0:00:46.4]} 55.
Kf1 {[%clk 0:01:52.5]} 55... Ke4 {[%clk 0:00:46.1]} 56. Kg2 {[%clk 0:01:53.4]}
56... Kf4 {[%clk 0:00:45.8]} 57. Kh3 {[%clk 0:01:53.7]} 57... g5 {[%clk
0:00:45.3]} 58. Kg2 {[%clk 0:01:54.3]} 58... Kf5 {[%clk 0:00:40.5]} 59. h4
{[%clk 0:01:54.5]} 59... g4 {[%clk 0:00:28.8]} 60. f3 {[%clk 0:01:54.4]} 60...
Kxf6 {[%clk 0:00:28.3]} 61. Kg3 {[%clk 0:01:52.7]} 61... gxf3 {[%clk 0:00:23.3]}
62. Kxf3 {[%clk 0:01:54.6]} 62... Kf5 {[%clk 0:00:25.2]} 0-1

[Event "*** Titled Tuesday Blitz"]
[Site "Chess.com"]
[Date "2019.02.05"]
[Round "4"]
[White "RaphaeI"]
[Black "Didici"]
[Result "0-1"]
[WhiteElo "2577"]
[BlackElo "2571"]
[TimeControl "180+2"]
[EndTime "13:50:25 PST"]
[Termination "Didici won by resignation"]

1. Nf3 {[%clk 0:03:01.9]} 1... d5 {[%clk 0:02:56.5]} 2. g3 {[%clk 0:03:02.6]}
2... Nf6 {[%clk 0:02:56.4]} 3. Bg2 {[%clk 0:03:02.3]} 3... e6 {[%clk 0:02:57.7]}
4. c4 {[%clk 0:03:00.1]} 4... Be7 {[%clk 0:02:57.3]} 5. d4 {[%clk 0:03:00.8]}
5... O-O {[%clk 0:02:58.8]} 6. Nc3 {[%clk 0:03:00]} 6... dxc4 {[%clk 0:02:46.7]}
7. Ne5 {[%clk 0:02:55.5]} 7... Qd6 {[%clk 0:02:48.1]} 8. Nxc4 {[%clk 0:02:43.3]}
8... Qa6 {[%clk 0:02:48.1]} 9. Qb3 {[%clk 0:02:35.4]} 9... Nc6 {[%clk
0:02:39.3]} 10. e3 {[%clk 0:02:26.3]} 10... Na5 {[%clk 0:02:17.8]} 11. Nxa5
{[%clk 0:02:24.6]} 11... Qxa5 {[%clk 0:02:19.7]} 12. O-O {[%clk 0:02:24.3]}
12... c5 {[%clk 0:02:19]} 13. Rd1 {[%clk 0:02:02.6]} 13... Rb8 {[%clk 0:02:02]}
14. Bd2 {[%clk 0:01:49.8]} 14... Qa6 {[%clk 0:01:36.2]} 15. dxc5 {[%clk
0:01:05.5]} 15... Bxc5 {[%clk 0:01:36.4]} 16. Na4 {[%clk 0:01:06.1]} 16... Be7
{[%clk 0:01:36.9]} 17. Bc3 {[%clk 0:01:07.1]} 17... Bd7 {[%clk 0:01:35.3]} 18.
Bxf6 {[%clk 0:01:01.2]} 18... Bxa4 {[%clk 0:01:34.9]} 19. Bxe7 {[%clk
0:01:02.7]} 19... Bxb3 {[%clk 0:01:35.5]} 20. axb3 {[%clk 0:01:04.6]} 20... Qb6
{[%clk 0:01:32.8]} 21. Bxf8 {[%clk 0:01:04.2]} 21... Kxf8 {[%clk 0:01:27.6]} 22.
Rd3 {[%clk 0:01:03.8]} 22... Rd8 {[%clk 0:01:13.8]} 23. Rxd8+ {[%clk 0:01:03.5]}
23... Qxd8 {[%clk 0:01:15.7]} 24. Rxa7 {[%clk 0:01:04.6]} 24... Qd1+ {[%clk
0:01:15.9]} 25. Bf1 {[%clk 0:01:05.8]} 25... Qxb3 {[%clk 0:01:16.8]} 26. Ra5
{[%clk 0:00:59.3]} 26... Qc2 {[%clk 0:01:01.1]} 27. Rb5 {[%clk 0:00:57.2]} 27...
Qc7 {[%clk 0:01:01.6]} 28. b3 {[%clk 0:00:56.6]} 28... Ke7 {[%clk 0:00:59.9]}
29. Bc4 {[%clk 0:00:58.1]} 29... b6 {[%clk 0:01:00.5]} 30. Kf1 {[%clk
0:00:52.5]} 30... Qd6 {[%clk 0:01:01.1]} 31. Ke2 {[%clk 0:00:54.1]} 31... g6
{[%clk 0:00:58.8]} 32. h4 {[%clk 0:00:55.3]} 32... h5 {[%clk 0:00:58.7]} 33. Rg5
{[%clk 0:00:56.4]} 33... Kd7 {[%clk 0:00:53.6]} 34. Bb5+ {[%clk 0:00:55]} 34...
Kc7 {[%clk 0:00:54.6]} 35. Bc4 {[%clk 0:00:56.9]} 35... Qe7 {[%clk 0:00:48.1]}
36. Rb5 {[%clk 0:00:57.2]} 36... f6 {[%clk 0:00:47.6]} 37. f4 {[%clk 0:00:49.2]}
37... Kc6 {[%clk 0:00:47.9]} 38. Bd3 {[%clk 0:00:44]} 38... Qa3 {[%clk
0:00:47.7]} 39. Bc4 {[%clk 0:00:37]} 39... Qb2+ {[%clk 0:00:47.8]} 40. Kf3
{[%clk 0:00:38]} 40... Qc3 {[%clk 0:00:47.4]} 41. Kf2 {[%clk 0:00:38.8]} 41...
Qd2+ {[%clk 0:00:28.5]} 42. Kf3 {[%clk 0:00:40]} 42... Qe1 {[%clk 0:00:29.6]}
43. e4 {[%clk 0:00:28]} 43... Qh1+ {[%clk 0:00:23.7]} 44. Ke3 {[%clk 0:00:27.7]}
44... Qg2 {[%clk 0:00:21]} 0-1

[Event "*** Titled Tuesday Blitz"]
[Site "Chess.com"]
[Date "2019.02.05"]
[Round "4"]
[White "Jospem"]
[Black "gmjlh"]
[Result "1-0"]
[WhiteElo "2901"]
[BlackElo "2704"]
[TimeControl "180+2"]
[EndTime "13:50:26 PST"]
[Termination "Jospem won by checkmate"]

1. c4 {[%clk 0:03:01.9]} 1... e5 {[%clk 0:02:59.2]} 2. g3 {[%clk 0:03:02.4]}
2... c6 {[%clk 0:02:59.7]} 3. Nf3 {[%clk 0:03:01.2]} 3... e4 {[%clk 0:03:00.2]}
4. Nd4 {[%clk 0:03:02.7]} 4... d5 {[%clk 0:03:01.4]} 5. cxd5 {[%clk 0:02:59.6]}
5... Qxd5 {[%clk 0:03:01.2]} 6. Nc2 {[%clk 0:03:00.7]} 6... Nf6 {[%clk
0:03:01.5]} 7. Bg2 {[%clk 0:03:01.4]} 7... Qe5 {[%clk 0:02:43.2]} 8. O-O {[%clk
0:02:55.5]} 8... Be7 {[%clk 0:02:40.5]} 9. d4 {[%clk 0:02:54.8]} 9... exd3
{[%clk 0:02:41.3]} 10. Qxd3 {[%clk 0:02:55.6]} 10... O-O {[%clk 0:02:41]} 11.
Bf4 {[%clk 0:02:55.7]} 11... Qh5 {[%clk 0:02:40.2]} 12. Nc3 {[%clk 0:02:56.7]}
12... Bh3 {[%clk 0:02:31.7]} 13. Ne3 {[%clk 0:02:47.1]} 13... Rd8 {[%clk
0:02:21.8]} 14. Qc2 {[%clk 0:02:47.5]} 14... Bxg2 {[%clk 0:02:18.7]} 15. Kxg2
{[%clk 0:02:44.3]} 15... Na6 {[%clk 0:02:13.3]} 16. Rfd1 {[%clk 0:02:42.8]}
16... Nb4 {[%clk 0:02:06.7]} 17. Qf5 {[%clk 0:02:40.4]} 17... Qg6 {[%clk
0:02:01]} 18. a3 {[%clk 0:02:37.9]} 18... Nbd5 {[%clk 0:02:00]} 19. Ncxd5 {[%clk
0:02:21.7]} 19... Nxd5 {[%clk 0:02:00]} 20. Nxd5 {[%clk 0:02:20.2]} 20... cxd5
{[%clk 0:01:43]} 21. Rxd5 {[%clk 0:02:21.7]} 21... Qxf5 {[%clk 0:01:26.7]} 22.
Rxf5 {[%clk 0:02:22.2]} 22... Rac8 {[%clk 0:01:28.1]} 23. Rc1 {[%clk 0:02:00.4]}
23... Rxc1 {[%clk 0:01:22.9]} 24. Bxc1 {[%clk 0:02:02.3]} 24... f6 {[%clk
0:00:49.5]} 25. Rb5 {[%clk 0:01:46.2]} 25... b6 {[%clk 0:00:49.1]} 26. Be3
{[%clk 0:01:47.5]} 26... Kf7 {[%clk 0:00:41.3]} 27. g4 {[%clk 0:01:47]} 27...
Ke6 {[%clk 0:00:41.6]} 28. a4 {[%clk 0:01:37.2]} 28... Rd5 {[%clk 0:00:41.8]}
29. h4 {[%clk 0:01:14.7]} 29... Rxb5 {[%clk 0:00:40.4]} 30. axb5 {[%clk
0:01:15.5]} 30... Kd5 {[%clk 0:00:41.7]} 31. b3 {[%clk 0:01:17]} 31... Ke4
{[%clk 0:00:42.6]} 32. Bd2 {[%clk 0:01:03.9]} 32... g6 {[%clk 0:00:38]} 33. h5
{[%clk 0:00:43.7]} 33... Bd6 {[%clk 0:00:17.2]} 34. Bh6 {[%clk 0:00:20.2]} 34...
Kd4 {[%clk 0:00:08.7]} 35. Bg7 {[%clk 0:00:19.9]} 35... Kc3 {[%clk 0:00:06.2]}
36. Bxf6+ {[%clk 0:00:20]} 36... Kxb3 {[%clk 0:00:07.5]} 37. e4 {[%clk
0:00:21.5]} 37... Kc4 {[%clk 0:00:07.8]} 38. e5 {[%clk 0:00:22.9]} 38... Bxe5
{[%clk 0:00:06.8]} 39. Bxe5 {[%clk 0:00:24]} 39... Kxb5 {[%clk 0:00:08.1]} 40.
f4 {[%clk 0:00:25.5]} 40... Kc6 {[%clk 0:00:08.5]} 41. f5 {[%clk 0:00:27]} 41...
gxf5 {[%clk 0:00:09.4]} 42. g5 {[%clk 0:00:28.5]} 42... Kd5 {[%clk 0:00:10.8]}
43. g6 {[%clk 0:00:29.6]} 43... hxg6 {[%clk 0:00:12.2]} 44. h6 {[%clk
0:00:31.2]} 44... Kxe5 {[%clk 0:00:13.3]} 45. h7 {[%clk 0:00:32.7]} 45... Kf6
{[%clk 0:00:15.2]} 46. h8=Q+ {[%clk 0:00:34.6]} 46... Kg5 {[%clk 0:00:17.1]} 47.
Qa8 {[%clk 0:00:35.8]} 47... a5 {[%clk 0:00:19]} 48. Qa7 {[%clk 0:00:37.1]}
48... a4 {[%clk 0:00:20.1]} 49. Qxb6 {[%clk 0:00:38.6]} 49... a3 {[%clk
0:00:21.1]} 50. Qa6 {[%clk 0:00:40.5]} 50... Kh5 {[%clk 0:00:22.7]} 51. Qxa3
{[%clk 0:00:41.7]} 51... Kg5 {[%clk 0:00:24.6]} 52. Kf3 {[%clk 0:00:43.6]} 52...
Kh5 {[%clk 0:00:26.5]} 53. Qe3 {[%clk 0:00:43.8]} 53... Kh4 {[%clk 0:00:27.2]}
54. Qh6# {[%clk 0:00:44.5]} 1-0

[Event "*** Titled Tuesday Blitz"]
[Site "Chess.com"]
[Date "2019.02.05"]
[Round "4"]
[White "GMMatamoros"]
[Black "Rakesh"]
[Result "1-0"]
[WhiteElo "2515"]
[BlackElo "2304"]
[TimeControl "180+2"]
[EndTime "13:50:27 PST"]
[Termination "GMMatamoros won by resignation"]

1. Nf3 {[%clk 0:03:00.6]} 1... Nf6 {[%clk 0:03:00.5]} 2. c4 {[%clk 0:03:01.1]}
2... g6 {[%clk 0:03:00.7]} 3. g3 {[%clk 0:03:01.9]} 3... Bg7 {[%clk 0:03:02.6]}
4. Bg2 {[%clk 0:03:03.4]} 4... O-O {[%clk 0:03:04.4]} 5. O-O {[%clk 0:03:04.8]}
5... d6 {[%clk 0:03:04.8]} 6. d4 {[%clk 0:03:05.1]} 6... c5 {[%clk 0:03:03]} 7.
Nc3 {[%clk 0:03:03.3]} 7... cxd4 {[%clk 0:03:03.6]} 8. Nxd4 {[%clk 0:03:05.2]}
8... a6 {[%clk 0:03:04.1]} 9. b3 {[%clk 0:03:04]} 9... Qc7 {[%clk 0:03:03.4]}
10. Bg5 {[%clk 0:03:04.6]} 10... Nc6 {[%clk 0:03:03.4]} 11. Bxf6 {[%clk
0:03:01.1]} 11... Bxf6 {[%clk 0:02:56.6]} 12. Nd5 {[%clk 0:03:01.9]} 12... Qd7
{[%clk 0:02:33.2]} 13. Nxf6+ {[%clk 0:02:43.6]} 13... exf6 {[%clk 0:02:30.6]}
14. Qd2 {[%clk 0:02:41.7]} 14... Qc7 {[%clk 0:02:11.9]} 15. Nxc6 {[%clk
0:02:16.4]} 15... bxc6 {[%clk 0:01:50.3]} 16. Qf4 {[%clk 0:02:16.9]} 16... Bf5
{[%clk 0:00:57.4]} 17. e4 {[%clk 0:02:02.7]} 17... Be6 {[%clk 0:00:55.6]} 18.
Qxf6 {[%clk 0:02:03.4]} 18... Rad8 {[%clk 0:00:55.4]} 19. Rfd1 {[%clk
0:01:47.8]} 19... Rfe8 {[%clk 0:00:13.8]} 20. Qf4 {[%clk 0:01:35]} 20... Qe7
{[%clk 0:00:08.2]} 21. Rd2 {[%clk 0:01:35.4]} 21... Rd7 {[%clk 0:00:08.9]} 22.
Rad1 {[%clk 0:01:35.7]} 22... Red8 {[%clk 0:00:10.3]} 23. h4 {[%clk 0:01:29.1]}
23... Kg7 {[%clk 0:00:11.1]} 24. e5 {[%clk 0:01:27.4]} 24... dxe5 {[%clk
0:00:11.2]} 25. Qxe5+ {[%clk 0:01:27.1]} 25... Kg8 {[%clk 0:00:12.2]} 26. Rxd7
{[%clk 0:01:18.1]} 26... Rxd7 {[%clk 0:00:14.1]} 27. Rxd7 {[%clk 0:01:18.5]}
27... Qxd7 {[%clk 0:00:15]} 28. h5 {[%clk 0:01:19]} 28... Qd1+ {[%clk
0:00:12.6]} 29. Kh2 {[%clk 0:01:18.6]} 29... gxh5 {[%clk 0:00:14]} 30. Bxc6
{[%clk 0:01:11.2]} 30... Qd2 {[%clk 0:00:14]} 31. Qe3 {[%clk 0:00:46.7]} 31...
Qxa2 {[%clk 0:00:12.7]} 32. Bd5 {[%clk 0:00:44.1]} 32... Bxd5 {[%clk 0:00:12.1]}
33. cxd5 {[%clk 0:00:46]} 33... Qa3 {[%clk 0:00:09.7]} 34. Qe8+ {[%clk
0:00:40.5]} 34... Kg7 {[%clk 0:00:10.2]} 35. Qe5+ {[%clk 0:00:41.9]} 35... f6
{[%clk 0:00:10.9]} 36. Qe3 {[%clk 0:00:37.6]} 36... Qd6 {[%clk 0:00:09.7]} 37.
Qe4 {[%clk 0:00:35.2]} 37... h4 {[%clk 0:00:09.5]} 38. Qg4+ {[%clk 0:00:23.9]}
38... Kf7 {[%clk 0:00:10.2]} 39. Qxh4 {[%clk 0:00:23.8]} 39... Qxd5 {[%clk
0:00:11.6]} 40. Qxh7+ {[%clk 0:00:24.7]} 40... Ke6 {[%clk 0:00:13]} 41. Qg8+
{[%clk 0:00:25.5]} 41... Ke5 {[%clk 0:00:13.7]} 42. Qxd5+ {[%clk 0:00:27.4]}
42... Kxd5 {[%clk 0:00:15.4]} 43. g4 {[%clk 0:00:27.5]} 43... Kc5 {[%clk
0:00:16.9]} 44. f4 {[%clk 0:00:28]} 44... a5 {[%clk 0:00:16.9]} 45. g5 {[%clk
0:00:29]} 45... fxg5 {[%clk 0:00:16.8]} 46. fxg5 {[%clk 0:00:30.9]} 46... Kd6
{[%clk 0:00:12.3]} 47. Kg3 {[%clk 0:00:31.8]} 47... Ke5 {[%clk 0:00:13.2]} 48.
Kg4 {[%clk 0:00:33]} 48... a4 {[%clk 0:00:14.6]} 49. bxa4 {[%clk 0:00:33.2]} 1-0

[Event "*** Titled Tuesday Blitz"]
[Site "Chess.com"]
[Date "2019.02.05"]
[Round "4"]
[White "iturrizaga"]
[Black "Sanan_Sjugirov"]
[Result "1-0"]
[WhiteElo "2833"]
[BlackElo "2834"]
[TimeControl "180+2"]
[EndTime "13:50:29 PST"]
[Termination "iturrizaga won by checkmate"]

1. Nf3 {[%clk 0:03:01.9]} 1... c5 {[%clk 0:03:00.9]} 2. c4 {[%clk 0:03:03.4]}
2... Nc6 {[%clk 0:02:58.2]} 3. d4 {[%clk 0:03:04.4]} 3... cxd4 {[%clk
0:02:59.5]} 4. Nxd4 {[%clk 0:03:06.3]} 4... Nf6 {[%clk 0:03:01]} 5. g3 {[%clk
0:03:07.3]} 5... e5 {[%clk 0:02:59.7]} 6. Nb5 {[%clk 0:03:04.5]} 6... Bb4+
{[%clk 0:02:55.8]} 7. Bd2 {[%clk 0:03:04.9]} 7... a6 {[%clk 0:02:32.1]} 8. N5c3
{[%clk 0:02:44.8]} 8... d5 {[%clk 0:02:23]} 9. cxd5 {[%clk 0:02:46.7]} 9... Nxd5
{[%clk 0:02:24]} 10. Bg2 {[%clk 0:02:47.9]} 10... Be6 {[%clk 0:02:16.3]} 11. O-O
{[%clk 0:02:43]} 11... O-O {[%clk 0:02:05.7]} 12. Nxd5 {[%clk 0:01:57.6]} 12...
Bxd5 {[%clk 0:02:02.3]} 13. Bg5 {[%clk 0:01:57.5]} 13... Qxg5 {[%clk 0:01:54.3]}
14. Qxd5 {[%clk 0:01:37.9]} 14... Rad8 {[%clk 0:01:55]} 15. Qb3 {[%clk
0:01:38.4]} 15... Qe7 {[%clk 0:01:17.4]} 16. a3 {[%clk 0:01:36.4]} 16... Ba5
{[%clk 0:01:03.5]} 17. e3 {[%clk 0:01:36.2]} 17... e4 {[%clk 0:00:59.5]} 18. Qc4
{[%clk 0:01:30.9]} 18... Rfe8 {[%clk 0:00:58.5]} 19. b4 {[%clk 0:01:31]} 19...
Bc7 {[%clk 0:00:53.5]} 20. Nc3 {[%clk 0:01:30.1]} 20... Be5 {[%clk 0:00:54.2]}
21. Rac1 {[%clk 0:01:05.2]} 21... Bxc3 {[%clk 0:00:54.9]} 22. Rxc3 {[%clk
0:01:07.1]} 22... g6 {[%clk 0:00:52.7]} 23. b5 {[%clk 0:00:30.7]} 23... axb5
{[%clk 0:00:53.4]} 24. Qxb5 {[%clk 0:00:32.6]} 24... f5 {[%clk 0:00:50.2]} 25.
Rb1 {[%clk 0:00:33.6]} 25... Rd7 {[%clk 0:00:48.9]} 26. Bf1 {[%clk 0:00:23.8]}
26... Kg7 {[%clk 0:00:44.7]} 27. Kg2 {[%clk 0:00:22.8]} 27... Ne5 {[%clk
0:00:41.4]} 28. Qb2 {[%clk 0:00:20.8]} 28... Kh6 {[%clk 0:00:38.6]} 29. Rb3
{[%clk 0:00:20.3]} 29... Rb8 {[%clk 0:00:34]} 30. Rb5 {[%clk 0:00:17.8]} 30...
Nf3 {[%clk 0:00:33.2]} 31. h4 {[%clk 0:00:15.4]} 31... Qf7 {[%clk 0:00:16.7]}
32. Rb6 {[%clk 0:00:13.6]} 32... Rd2 {[%clk 0:00:17.1]} 33. Qc3 {[%clk
0:00:14.5]} 33... Qd7 {[%clk 0:00:13.6]} 34. R6b2 {[%clk 0:00:13.1]} 34... Rxb2
{[%clk 0:00:13.3]} 35. Rxb2 {[%clk 0:00:12.6]} 35... Rc8 {[%clk 0:00:14.2]} 36.
Qf6 {[%clk 0:00:12]} 36... Qc7 {[%clk 0:00:09.8]} 37. Be2 {[%clk 0:00:10.9]}
37... Qc1 {[%clk 0:00:09.2]} 38. Bxf3 {[%clk 0:00:08.7]} 38... exf3+ {[%clk
0:00:10.5]} 39. Kh2 {[%clk 0:00:08.4]} 39... Qc6 {[%clk 0:00:08.4]} 40. Qg5+
{[%clk 0:00:08.1]} 40... Kg7 {[%clk 0:00:09.7]} 41. Qe7+ {[%clk 0:00:08.1]}
41... Kh6 {[%clk 0:00:08.1]} 42. Rxb7 {[%clk 0:00:09.6]} 42... Kh5 {[%clk
0:00:08]} 43. Qg5# {[%clk 0:00:10.3]} 1-0

[Event "*** Titled Tuesday Blitz"]
[Site "Chess.com"]
[Date "2019.02.05"]
[Round "4"]
[White "cool4chess"]
[Black "hermionegrangermagic"]
[Result "1-0"]
[WhiteElo "2310"]
[BlackElo "2295"]
[TimeControl "180+2"]
[EndTime "13:50:31 PST"]
[Termination "cool4chess won by checkmate"]

1. e4 {[%clk 0:03:01.9]} 1... c5 {[%clk 0:03:01]} 2. Nf3 {[%clk 0:03:01.7]} 2...
Nc6 {[%clk 0:03:02.1]} 3. d4 {[%clk 0:03:01.2]} 3... cxd4 {[%clk 0:03:04]} 4.
Nxd4 {[%clk 0:03:02.6]} 4... e5 {[%clk 0:03:04.4]} 5. Nb5 {[%clk 0:03:03.4]}
5... d6 {[%clk 0:03:05.4]} 6. N1c3 {[%clk 0:03:04.5]} 6... a6 {[%clk 0:03:06.1]}
7. Na3 {[%clk 0:03:05.7]} 7... b5 {[%clk 0:03:07.5]} 8. Nd5 {[%clk 0:03:06.9]}
8... Nge7 {[%clk 0:03:08.5]} 9. c4 {[%clk 0:03:07.3]} 9... Nxd5 {[%clk
0:03:08.8]} 10. exd5 {[%clk 0:03:07.2]} 10... Nd4 {[%clk 0:03:04.7]} 11. cxb5
{[%clk 0:03:08.3]} 11... Be7 {[%clk 0:02:58.7]} 12. Be3 {[%clk 0:03:07.1]} 12...
O-O {[%clk 0:02:56.9]} 13. Bd3 {[%clk 0:02:46]} 13... axb5 {[%clk 0:02:42.5]}
14. Bxd4 {[%clk 0:02:38.6]} 14... exd4 {[%clk 0:02:42.2]} 15. Nxb5 {[%clk
0:02:39.7]} 15... Qa5+ {[%clk 0:02:00.4]} 16. Qd2 {[%clk 0:02:39.9]} 16... Re8
{[%clk 0:01:54.2]} 17. Qxa5 {[%clk 0:02:33.5]} 17... Rxa5 {[%clk 0:01:47.5]} 18.
O-O {[%clk 0:02:30.5]} 18... Bd7 {[%clk 0:01:29.6]} 19. a4 {[%clk 0:02:15.5]}
19... Rc8 {[%clk 0:01:21.7]} 20. Rfe1 {[%clk 0:02:12.4]} 20... Kf8 {[%clk
0:01:22.2]} 21. b4 {[%clk 0:02:09.4]} 21... Raa8 {[%clk 0:01:20.2]} 22. a5
{[%clk 0:01:40.8]} 22... Rab8 {[%clk 0:01:03.9]} 23. a6 {[%clk 0:01:34.4]} 23...
Rxb5 {[%clk 0:01:03.9]} 24. a7 {[%clk 0:01:12.4]} 24... Ra8 {[%clk 0:01:00]} 25.
Bxb5 {[%clk 0:01:13]} 25... Bxb5 {[%clk 0:01:01]} 26. Ra5 {[%clk 0:01:11.3]}
26... Bc4 {[%clk 0:00:59.4]} 27. Rc1 {[%clk 0:01:09.8]} 27... Bd8 {[%clk
0:00:40.6]} 28. Rxc4 {[%clk 0:00:42.5]} 28... Bxa5 {[%clk 0:00:40.5]} 29. bxa5
{[%clk 0:00:44.4]} 29... Rxa7 {[%clk 0:00:31.3]} 30. Ra4 {[%clk 0:00:45.4]}
30... d3 {[%clk 0:00:26.4]} 31. Kf1 {[%clk 0:00:44.8]} 31... Ke7 {[%clk
0:00:16.8]} 32. Ke1 {[%clk 0:00:45.3]} 32... Kf6 {[%clk 0:00:14.9]} 33. f4
{[%clk 0:00:46.4]} 33... g5 {[%clk 0:00:11.8]} 34. fxg5+ {[%clk 0:00:39.9]}
34... Ke5 {[%clk 0:00:09.5]} 35. Kd2 {[%clk 0:00:41.1]} 35... Kxd5 {[%clk
0:00:10.6]} 36. Kxd3 {[%clk 0:00:42.3]} 36... Kc5 {[%clk 0:00:11.7]} 37. Ra1
{[%clk 0:00:29.2]} 37... Ra6 {[%clk 0:00:10.2]} 38. h4 {[%clk 0:00:28]} 38... d5
{[%clk 0:00:06.7]} 39. h5 {[%clk 0:00:26]} 39... Kb5 {[%clk 0:00:05.2]} 40. Kd4
{[%clk 0:00:26.6]} 40... Re6 {[%clk 0:00:05.1]} 41. a6 {[%clk 0:00:23.8]} 41...
Rxa6 {[%clk 0:00:02.5]} 42. Rxa6 {[%clk 0:00:24.4]} 42... Kxa6 {[%clk
0:00:04.4]} 43. Kxd5 {[%clk 0:00:25.8]} 43... Kb6 {[%clk 0:00:05.7]} 44. Kd6
{[%clk 0:00:27.1]} 44... Kb7 {[%clk 0:00:07.2]} 45. Ke7 {[%clk 0:00:28.4]} 45...
Kc8 {[%clk 0:00:09.1]} 46. Kxf7 {[%clk 0:00:29.7]} 46... Kd7 {[%clk 0:00:11]}
47. g6 {[%clk 0:00:31.2]} 47... h6 {[%clk 0:00:11.9]} 48. g7 {[%clk 0:00:32.4]}
48... Kd6 {[%clk 0:00:13.6]} 49. g8=Q {[%clk 0:00:33.7]} 49... Ke5 {[%clk
0:00:15.5]} 50. Qg7+ {[%clk 0:00:34.7]} 50... Kf5 {[%clk 0:00:17.4]} 51. Qxh6
{[%clk 0:00:36.4]} 51... Kg4 {[%clk 0:00:19.3]} 52. Qg6+ {[%clk 0:00:37.6]}
52... Kf4 {[%clk 0:00:21.2]} 53. h6 {[%clk 0:00:38.8]} 53... Ke3 {[%clk
0:00:23.1]} 54. h7 {[%clk 0:00:40.2]} 54... Kf2 {[%clk 0:00:24.1]} 55. h8=Q
{[%clk 0:00:41.1]} 55... Ke2 {[%clk 0:00:26]} 56. g4 {[%clk 0:00:42.1]} 56...
Kf2 {[%clk 0:00:27.9]} 57. Qf5+ {[%clk 0:00:43.4]} 57... Kg2 {[%clk 0:00:29.8]}
58. g5 {[%clk 0:00:44.4]} 58... Kg1 {[%clk 0:00:31.7]} 59. g6 {[%clk 0:00:45.7]}
59... Kg2 {[%clk 0:00:32.6]} 60. g7 {[%clk 0:00:47.6]} 60... Kg1 {[%clk
0:00:34.5]} 61. g8=R# {[%clk 0:00:48.1]} 1-0